bitfinex/quotes_BTCUSD_20220307
["timestamp","ask_amount","ask_price","bid_price","bid_amount"]
[1646688727806,0.02446,37595.0,37593.0,0.001]
[1646688728007,0.01329,37600.0,37593.0,0.001]
[1646688728211,0.24181399,37597.0,37593.0,0.001]
[1646688729110,0.2,37595.0,37593.0,0.001]
[1646688729558,0.2,37595.0,37593.0,0.16517964]
[1646688730265,0.2,37595.0,37593.0,0.97397964]
[1646688730463,0.2,37595.0,37594.0,0.875303]
[1646688730665,0.00154449,37605.0,37596.0,0.8088]
[1646688730865,0.00154449,37605.0,37598.0,0.8088]
[1646688731063,0.00154449,37605.0,37591.0,0.17631472]
[1646688731064,0.6,37604.0,37591.0,0.17631472]
[1646688731264,0.15,37594.0,37588.0,0.002]
[1646688731467,0.15,37591.0,37588.0,0.002]
[1646688732062,0.33126142,37591.0,37588.0,0.002]
[1646688732461,0.18126142,37591.0,37588.0,0.002]
[1646688732866,0.15,37591.0,37588.0,0.002]
[1646688733166,1.6,37590.0,37588.0,0.002]
[1646688733415,1.6,37590.0,37582.0,0.004]
[1646688733416,1.6,37588.0,37582.0,0.004]
[1646688733614,0.15,37583.0,37582.0,0.004]
[1646688733813,0.15,37583.0,37581.0,0.011]
[1646688733814,0.55,37582.0,37581.0,0.011]
[1646688734018,0.9132409,37583.0,37581.0,0.011]
[1646688734717,0.17439084,37582.0,37581.0,0.011]
[1646688734916,0.43341204,37583.0,37581.0,0.011]
[1646688735116,0.15,37583.0,37581.0,0.011]
[1646688735317,0.15,37583.0,37581.0,0.0001]
[1646688735520,0.15,37583.0,37580.0,0.00110089]
[1646688735521,1.3,37581.0,37580.0,0.00110089]
[1646688735717,0.48106608,37582.0,37580.0,0.00110089]
[1646688735918,0.299617,37584.0,37580.0,0.00110089]
[1646688736117,0.0999,37584.0,37580.0,0.00110089]
[1646688736315,0.0999,37584.0,37580.0,0.001]
[1646688736517,0.05,37587.0,37580.0,0.001]
[1646688736714,0.15,37584.0,37580.0,0.00110089]
[1646688737161,0.36657268,37587.0,37580.0,0.00110089]
[1646688737364,0.0487,37595.0,37580.0,0.00110089]
[1646688737565,0.0015491,37598.0,37580.0,0.001]
[1646688737566,0.0515491,37598.0,37580.0,0.001]
[1646688737763,0.0515491,37598.0,37582.0,0.13304237]
[1646688737963,0.0515491,37598.0,37588.0,0.22206384]
[1646688737964,0.17466978,37596.0,37588.0,0.22206384]
[1646688738171,0.05107021,37598.0,37588.0,0.27076384]
[1646688738361,0.05107021,37598.0,37588.0,0.55162446]
[1646688738362,0.04107021,37598.0,37588.0,0.55162446]
[1646688738561,0.15,37597.0,37588.0,0.27076384]
[1646688738760,0.04107021,37598.0,37581.0,0.3]
[1646688738761,0.15,37591.0,37581.0,0.3]
[1646688739166,0.15,37591.0,37590.0,0.00010086]
[1646688739563,0.29414429,37593.0,37590.0,0.00010086]
[1646688739762,0.44414429,37593.0,37590.0,0.00010086]
[1646688739962,0.05,37595.0,37586.0,0.21081187]
[1646688740162,0.05,37595.0,37590.0,9.078e-05]
[1646688740363,0.15,37591.0,37590.0,9.078e-05]
[1646688740569,1.6,37589.0,37577.0,0.00444689]
[1646688740834,0.15,37578.0,37572.0,0.002]
[1646688741021,0.14842,37575.0,37572.0,0.002]
[1646688741615,0.68704791,37575.0,37572.0,0.002]
[1646688741815,0.4267281,37575.0,37571.0,0.001]
[1646688742017,0.14842,37575.0,37571.0,0.001]
[1646688742216,0.116566,37578.0,37571.0,0.001]
[1646688742217,0.14842,37573.0,37571.0,0.001]
[1646688742817,0.05,37578.0,37571.0,0.001]
[1646688743316,0.05,37578.0,37571.0,0.26003401]
[1646688743915,0.05,37578.0,37573.0,0.06653141]
[1646688744114,0.05,37578.0,37573.0,9.614e-05]
[1646688744771,0.05,37578.0,37572.0,0.20484705]
[1646688744969,0.05,37578.0,37574.0,9.614e-05]
[1646688745370,0.14842,37576.0,37574.0,9.614e-05]
[1646688745973,0.14842,37576.0,37571.0,0.29255504]
[1646688746178,0.214986,37576.0,37573.0,9.614e-05]
[1646688746374,0.066566,37576.0,37573.0,9.614e-05]
[1646688746577,0.14842,37574.0,37573.0,9.614e-05]
[1646688746773,0.00019228,37572.0,37571.0,0.001]
[1646688746975,0.14861228,37572.0,37571.0,0.001]
[1646688747373,0.00019228,37572.0,37571.0,0.001]
[1646688748719,0.00019228,37572.0,37571.0,0.06000437]
[1646688749121,0.00019228,37572.0,37571.0,0.10870437]
[1646688750016,0.00019228,37572.0,37571.0,0.10370437]
[1646688750417,0.00019228,37572.0,37571.0,0.05500437]
[1646688751920,0.00019228,37572.0,37571.0,0.12155337]
[1646688752559,0.05,37586.0,37571.0,0.12155337]
[1646688752560,0.2303,37595.0,37572.0,1.62652]
[1646688752759,0.05,37595.0,37584.0,0.00158]
[1646688752957,0.05,37595.0,37586.0,0.00158]
[1646688753157,0.05,37595.0,37587.0,0.0487]
[1646688753360,0.32592826,37595.0,37587.0,0.0487]
[1646688753558,0.27598156,37594.0,37588.0,0.06048685]
[1646688753757,0.00014199,37591.0,37588.0,0.06048685]
[1646688753961,0.00014199,37591.0,37587.0,0.0487]
[1646688754563,0.05,37595.0,37587.0,0.0487]
[1646688754760,0.00014199,37591.0,37587.0,0.0487]
[1646688754963,0.00014199,37591.0,37589.0,0.06379759]
[1646688755157,0.00014199,37591.0,37586.0,0.40931039]
[1646688755560,0.00014199,37591.0,37586.0,0.16877896]
[1646688755805,0.27528592,37592.0,37586.0,0.16877896]
[1646688756006,0.00014212,37590.0,37586.0,0.21747896]
[1646688757008,0.05,37595.0,37587.0,0.066528]
[1646688757211,0.00014212,37590.0,37588.0,0.34590567]
[1646688757408,0.00014212,37590.0,37589.0,0.29558958]
[1646688757607,0.00014212,37590.0,37589.0,0.34428958]
[1646688758211,0.276545,37602.0,37589.0,0.17204853]
[1646688758409,0.276545,37602.0,37599.0,0.26842929]
[1646688758610,0.05,37603.0,37599.0,0.26842929]
[1646688759215,0.05,37611.0,37600.0,0.11147812]
[1646688759410,0.05,37611.0,37605.0,0.066496]
[1646688760066,0.34620653,37611.0,37605.0,0.066496]
[1646688760364,0.34607333,37611.0,37605.0,0.066496]
[1646688760663,0.14842,37609.0,37605.0,0.066496]
[1646688760865,0.14842,37609.0,37603.0,0.0487]
[1646688761265,0.00013956,37610.0,37603.0,0.0487]
[1646688761266,0.14855956,37610.0,37603.0,0.0487]
[1646688761665,0.14842,37610.0,37603.0,0.0487]
[1646688762063,0.00014009,37608.0,37603.0,0.0487]
[1646688762564,0.00014009,37608.0,37605.0,0.16469302]
[1646688762762,0.00014009,37608.0,37606.0,0.066496]
[1646688762965,0.34607333,37611.0,37603.0,0.0487]
[1646688763162,0.00014054,37607.0,37603.0,0.0487]
[1646688763803,0.00014054,37607.0,37606.0,0.07292557]
[1646688764206,0.1982868,37611.0,37606.0,0.07292557]
[1646688764406,0.00014054,37607.0,37606.0,0.07292557]
[1646688765004,0.00014054,37607.0,37606.0,0.37292557]
[1646688765407,0.0498668,37611.0,37606.0,0.37292557]
[1646688765708,0.00014054,37608.0,37606.0,0.43942057]
[1646688765908,0.00014054,37608.0,37607.0,0.3]
[1646688766509,0.0498668,37611.0,37607.0,0.3]
[1646688766708,0.00014044,37609.0,37607.0,0.3]
[1646688767750,0.0498668,37611.0,37607.0,0.3]
[1646688767950,0.00014044,37610.0,37607.0,0.3]
[1646688768351,0.14856044,37610.0,37607.0,0.3]
[1646688768550,0.00014044,37610.0,37607.0,0.3]
[1646688768752,0.00014044,37610.0,37607.0,0.36648915]
[1646688768951,0.0498668,37611.0,37607.0,0.06648915]
[1646688769152,0.00014044,37610.0,37607.0,0.06648915]
[1646688769558,0.00014044,37610.0,37606.0,0.115195]
[1646688769954,0.00014044,37610.0,37606.0,0.0487]
[1646688770151,0.1982868,37611.0,37606.0,0.0487]
[1646688770552,0.00014046,37610.0,37606.0,0.0487]
[1646688771405,0.0498668,37611.0,37606.0,0.0487]
[1646688771609,0.00014046,37610.0,37606.0,0.115196]
[1646688772211,0.00014046,37610.0,37607.0,0.8088]
[1646688772407,0.00014046,37610.0,37608.0,0.181658]
[1646688772607,0.05,37618.0,37608.0,0.55690847]
[1646688772805,0.05,37618.0,37614.0,0.06536842]
[1646688773008,0.05,37618.0,37615.0,0.066478]
[1646688773705,0.05,37618.0,37615.0,0.061478]
[1646688774104,0.05014045,37618.0,37615.0,0.061478]
[1646688774955,0.05,37618.0,37615.0,0.061478]
[1646688775158,0.19856045,37618.0,37613.0,0.132956]
[1646688775359,0.14842,37616.0,37611.0,0.3487]
[1646688775568,0.05314045,37618.0,37610.0,0.003]
[1646688775569,0.14842,37612.0,37610.0,0.003]
[1646688775760,0.3,37611.0,37610.0,0.003]
[1646688775960,0.00296764,37609.0,37599.0,0.15976217]
[1646688776158,0.32299911,37605.0,37599.0,0.15976217]
[1646688776358,0.28651394,37607.0,37599.0,0.15976217]
[1646688776559,0.28651394,37607.0,37600.0,0.066507]
[1646688776861,0.00296764,37609.0,37599.0,0.15976217]
[1646688777059,0.00296764,37609.0,37599.0,0.22626617]
[1646688777263,0.00296764,37609.0,37602.0,0.132996]
[1646688777460,0.00296764,37609.0,37606.0,0.32271185]
[1646688777657,0.25496969,37605.0,37604.0,0.06649]
[1646688777867,0.00296764,37609.0,37606.0,1.4588]
[1646688777868,0.00014046,37609.0,37606.0,1.4588]
[1646688778071,0.00014046,37609.0,37608.0,0.83532]
[1646688778313,0.00014046,37609.0,37608.0,1.21364992]
[1646688778515,0.00014046,37609.0,37608.0,0.86053559]
[1646688778714,0.00014046,37609.0,37608.0,1.3439932]
[1646688778915,0.00014046,37609.0,37608.0,0.71686598]
[1646688779116,0.00014046,37609.0,37608.0,0.14479291]
[1646688779314,0.00014046,37609.0,37608.0,0.05173559]
[1646688779718,0.00014046,37609.0,37608.0,0.07825559]
[1646688780017,0.00014046,37609.0,37608.0,0.05173559]
[1646688780214,0.00014046,37609.0,37608.0,0.40445644]
[1646688780417,0.00014046,37609.0,37608.0,0.43097644]
[1646688780614,0.00014046,37609.0,37608.0,1.26795077]
[1646688780816,0.00014046,37609.0,37608.0,1.44917255]
[1646688781015,0.00014046,37609.0,37608.0,1.60601624]
[1646688781817,0.00014046,37609.0,37608.0,0.60101633]
[1646688782863,0.00014046,37609.0,37608.0,1.43633633]
[1646688783064,0.00014046,37609.0,37608.0,0.96302623]
[1646688783265,0.00180686,37609.0,37608.0,0.95999064]
[1646688783464,0.00180686,37609.0,37608.0,0.592814]
[1646688783863,0.00180686,37609.0,37608.0,1.401614]
[1646688784665,0.00180686,37609.0,37608.0,1.428134]
[1646688785470,0.00011709,37610.0,37609.0,2.501788]
[1646688785669,0.00011709,37610.0,37609.0,2.550488]
[1646688785935,0.25620089,37623.0,37618.0,0.179755]
[1646688786135,0.25620089,37623.0,37619.0,0.3487]
[1646688786336,0.05,37625.0,37619.0,1.1575]
[1646688786536,0.14842,37628.0,37624.0,0.05663417]
[1646688786736,0.14842,37628.0,37622.0,0.0487]
[1646688786935,0.01,37629.0,37620.0,0.3487]
[1646688787338,0.1485371,37628.0,37620.0,0.3487]
[1646688787542,0.29452037,37624.0,37620.0,0.41517]
[1646688787736,0.29452037,37624.0,37620.0,0.3487]
[1646688788537,0.29463747,37624.0,37620.0,0.0487]
[1646688788741,0.29463747,37624.0,37617.0,0.003]
[1646688788742,0.14842,37621.0,37617.0,0.003]
[1646688788939,0.2622704,37622.0,37617.0,0.003]
[1646688788940,0.14842,37618.0,37617.0,0.003]
[1646688789339,0.14842,37621.0,37617.0,0.003]
[1646688789565,0.2622704,37622.0,37614.0,0.0487]
[1646688789566,0.14842,37619.0,37614.0,0.0487]
[1646688789767,0.2622704,37622.0,37614.0,0.0487]
[1646688789965,0.14856614,37619.0,37614.0,0.0487]
[1646688790569,0.14856614,37619.0,37614.0,0.10535474]
[1646688790766,0.14842,37619.0,37615.0,0.066472]
[1646688790967,0.00012918,37618.0,37616.0,0.0487]
[1646688791367,0.00012918,37618.0,37617.0,0.3]
[1646688791765,0.00012918,37618.0,37617.0,0.432937]
[1646688791965,0.14842,37619.0,37617.0,0.432937]
[1646688792165,0.14854918,37619.0,37618.0,0.3]
[1646688792366,0.14854918,37619.0,37618.0,0.366468]
[1646688792967,0.14854918,37619.0,37618.0,0.3]
[1646688793170,0.14854918,37619.0,37616.0,0.3]
[1646688793171,0.14842,37619.0,37616.0,0.3]
[1646688793412,0.14842,37617.0,37614.0,0.3]
[1646688793610,0.14842,37615.0,37614.0,0.3]
[1646688793814,0.14842,37617.0,37614.0,0.3]
[1646688794010,0.00012918,37620.0,37614.0,0.3]
[1646688794212,0.00012918,37620.0,37613.0,0.004]
[1646688794213,0.3227332,37616.0,37613.0,0.004]
[1646688794415,0.3227332,37616.0,37606.0,0.13295805]
[1646688794416,0.161661,37613.0,37605.0,0.0487]
[1646688794615,0.161661,37613.0,37597.0,0.3]
[1646688794616,0.14842,37606.0,37597.0,0.3]
[1646688794813,0.18698979,37612.0,37589.0,0.1915]
[1646688794814,0.14842,37598.0,37589.0,0.1915]
[1646688795009,0.29212012,37607.0,37588.0,0.0133]
[1646688795010,0.14842,37595.0,37588.0,0.0133]
[1646688795211,0.14842,37591.0,37588.0,0.0133]
[1646688795414,0.14842,37589.0,37588.0,0.0133]
[1646688795716,0.14842,37589.0,37587.0,0.000666]
[1646688796412,0.06750384,37588.0,37587.0,0.000666]
[1646688797464,0.06950384,37588.0,37587.0,0.000666]
[1646688798062,0.002,37588.0,37587.0,0.000666]
[1646688798267,0.00152139,37588.0,37587.0,0.000666]
[1646688799464,0.14842,37589.0,37587.0,0.000666]
[1646688800915,0.06118843,37588.0,37587.0,0.000666]
[1646688801110,0.14842,37589.0,37587.0,0.000666]
[1646688801309,0.14842,37589.0,37587.0,0.100666]
[1646688802909,0.214959,37589.0,37587.0,0.100666]
[1646688803311,0.2867291,37589.0,37587.0,0.100666]
[1646688803710,0.214959,37589.0,37587.0,0.100666]
[1646688803910,0.414959,37589.0,37587.0,0.100666]
[1646688804558,0.414959,37589.0,37587.0,0.10249439]
[1646688804962,0.2,37589.0,37588.0,0.3]
[1646688805160,0.2,37589.0,37587.0,0.10249439]
[1646688805560,0.4,37589.0,37587.0,0.10249439]
[1646688805959,0.4,37589.0,37587.0,0.23552639]
[1646688806361,0.4,37589.0,37587.0,0.10249439]
[1646688807059,0.395,37589.0,37587.0,0.10249439]
[1646688807961,0.395,37589.0,37588.0,0.3]
[1646688808160,0.395,37589.0,37585.0,0.133045]
[1646688808161,0.17544595,37587.0,37585.0,0.133045]
[1646688809007,0.17544595,37587.0,37585.0,0.941845]
[1646688809719,0.17544595,37587.0,37586.0,0.0487]
[1646688810107,0.17544595,37587.0,37586.0,0.87079]
[1646688810308,0.17544595,37587.0,37585.0,0.26608465]
[1646688810507,0.17544595,37587.0,37586.0,0.062]
[1646688810707,0.01329,37605.0,37587.0,1.6]
[1646688810917,0.2995817,37619.0,37594.0,0.00158]
[1646688810918,0.00012516,37608.0,37594.0,0.00158]
[1646688811112,0.00012516,37608.0,37595.0,0.208214]
[1646688811317,0.31328,37615.0,37601.0,0.00158]
[1646688811318,0.01328,37615.0,37601.0,0.00158]
[1646688811516,0.99388146,37620.0,37616.0,0.17225698]
[1646688811517,0.01328,37619.0,37616.0,0.17225698]
[1646688811716,0.21496146,37624.0,37613.0,0.24748003]
[1646688811717,0.05308094,37615.0,37613.0,0.24748003]
[1646688811911,0.05308094,37615.0,37614.0,0.8575]
[1646688812172,0.05308094,37615.0,37614.0,0.97446062]
[1646688812462,0.05308094,37615.0,37614.0,1.27446062]
[1646688812463,8.094e-05,37615.0,37614.0,1.27446062]
[1646688812663,8.094e-05,37615.0,37614.0,1.45881206]
[1646688813264,8.094e-05,37615.0,37614.0,1.52528106]
[1646688813664,8.094e-05,37615.0,37614.0,1.55180106]
[1646688813865,0.15350094,37629.0,37616.0,0.8088]
[1646688814064,0.15350094,37629.0,37622.0,0.05721097]
[1646688814065,0.45211629,37629.0,37622.0,0.05721097]
[1646688814263,0.30369629,37629.0,37623.0,0.3487]
[1646688814465,0.45211629,37629.0,37623.0,0.0487]
[1646688814663,0.30369629,37629.0,37623.0,0.0487]
[1646688815064,0.14842,37626.0,37623.0,0.0487]
[1646688815264,0.30369629,37629.0,37623.0,0.0487]
[1646688815265,0.00014664,37628.0,37623.0,0.0487]
[1646688815462,0.00014664,37628.0,37623.0,0.3487]
[1646688815666,0.00014664,37628.0,37624.0,0.06756558]
[1646688815917,0.10048642,37636.0,37627.0,0.8088]
[1646688815918,0.00058642,37636.0,37627.0,0.8088]
[1646688816118,0.00058642,37636.0,37630.0,0.06643624]
[1646688816315,0.00058642,37636.0,37631.0,0.3487]
[1646688816525,0.0999,37642.0,37632.0,1.05007049]
[1646688816526,0.24832,37642.0,37632.0,1.05007049]
[1646688816715,0.32002324,37643.0,37639.0,0.07175926]
[1646688816915,0.48580707,37646.0,37640.0,0.0487]
[1646688816916,0.36338146,37646.0,37640.0,0.0487]
[1646688817116,0.14842,37646.0,37640.0,0.0487]
[1646688817316,2.81383054,37652.0,37640.0,0.0487]
[1646688817518,0.21037916,37652.0,37640.0,0.0487]
[1646688817715,0.21037916,37652.0,37641.0,0.3]
[1646688817917,0.29800343,37648.0,37642.0,0.25267153]
[1646688818117,0.29800343,37648.0,37642.0,0.0487]
[1646688818716,0.00014717,37647.0,37642.0,0.0487]
[1646688819414,0.00014717,37647.0,37639.0,0.066436]
[1646688819658,0.29300343,37648.0,37640.0,0.0487]
[1646688819857,0.29300343,37648.0,37641.0,0.0487]
[1646688820059,0.19487231,37645.0,37641.0,0.0487]
[1646688820258,0.23430564,37642.0,37641.0,0.0487]
[1646688820860,0.27898047,37649.0,37641.0,0.0487]
[1646688820861,0.42898047,37649.0,37641.0,0.0487]
[1646688821059,0.34744219,37655.0,37641.0,0.0487]
[1646688821060,0.0999,37647.0,37642.0,0.3]
[1646688821259,0.00014718,37643.0,37641.0,0.09494]
[1646688821458,0.00014718,37643.0,37642.0,0.0487]
[1646688821862,0.00014718,37643.0,37642.0,0.64052389]
[1646688822058,0.21318495,37654.0,37642.0,0.64052389]
[1646688822259,0.46443286,37654.0,37643.0,0.3]
[1646688822475,0.00014717,37644.0,37642.0,0.59182389]
[1646688822665,0.076425,37659.0,37645.0,0.8088]
[1646688822666,0.1099,37659.0,37645.0,0.8088]
[1646688822864,0.1099,37659.0,37647.0,0.9588]
[1646688823063,0.01,37659.0,37649.0,0.875209]
[1646688823321,0.01,37659.0,37651.0,0.8088]
[1646688823520,0.01,37659.0,37655.0,0.8088]
[1646688823721,0.01,37659.0,37656.0,0.3487]
[1646688824120,0.01,37659.0,37656.0,0.0487]
[1646688824324,0.01,37659.0,37658.0,0.06341255]
[1646688824528,0.01,37659.0,37658.0,0.0487]
[1646688825524,0.01,37659.0,37658.0,0.13899]
[1646688826125,0.41,37659.0,37658.0,0.13899]
[1646688826325,0.41,37659.0,37644.0,0.1999]
[1646688826326,0.23041441,37657.0,37644.0,0.1999]
[1646688826522,0.3,37656.0,37647.0,0.0487]
[1646688826727,0.23041441,37657.0,37647.0,0.0487]
[1646688826924,0.23041441,37657.0,37652.0,0.24140526]
[1646688827165,0.23041441,37657.0,37652.0,0.45177725]
[1646688827360,0.23041441,37657.0,37652.0,0.51818725]
[1646688827562,0.23041441,37657.0,37653.0,0.0487]
[1646688827961,0.23041441,37657.0,37655.0,0.07059403]
[1646688828163,0.23041441,37657.0,37656.0,0.0487]
[1646688828566,0.23055664,37657.0,37656.0,0.115105]
[1646688828964,0.23055664,37657.0,37656.0,0.0487]
[1646688829366,0.5583803,37657.0,37656.0,0.0487]
[1646688831032,0.55820343,37657.0,37656.0,0.0487]
[1646688831234,0.77925974,37657.0,37645.0,0.1461]
[1646688831438,0.77925974,37657.0,37651.0,0.003]
[1646688831735,0.77925974,37657.0,37645.0,0.1461]
[1646688831736,0.0456053,37647.0,37646.0,0.0487]
[1646688832038,0.0456053,37647.0,37639.0,0.199242]
[1646688832238,0.29265285,37640.0,37637.0,8.214e-05]
[1646688832631,2.71497555,37638.0,37637.0,8.214e-05]
[1646688833031,2.71497555,37638.0,37635.0,0.132873]
[1646688833236,0.0456053,37647.0,37636.0,1.26407026]
[1646688833433,0.0456053,37647.0,37642.0,0.17014465]
[1646688833635,0.0456053,37647.0,37643.0,0.06641933]
[1646688834032,0.0456053,37647.0,37642.0,0.132839]
[1646688834232,0.0456053,37647.0,37634.0,0.399045]
[1646688834432,0.0456053,37647.0,37631.0,0.8]
[1646688834666,0.0456053,37647.0,37632.0,0.3]
[1646688834868,0.21481292,37644.0,37636.0,0.20184478]
[1646688835067,0.0456053,37647.0,37638.0,0.066429]
[1646688835265,0.0456053,37647.0,37642.0,0.066429]
[1646688836065,0.0456053,37647.0,37642.0,0.25213046]
[1646688836467,0.0456053,37647.0,37642.0,0.31855587]
[1646688836668,0.0456053,37647.0,37642.0,0.61855587]
[1646688837268,0.0456053,37647.0,37642.0,1.42735587]
[1646688837672,0.0456053,37647.0,37642.0,0.68497987]
[1646688837873,0.0456053,37647.0,37643.0,0.06641712]
[1646688838073,0.0456053,37647.0,37645.0,0.06641]
[1646688838311,0.0456053,37647.0,37646.0,0.8088]
[1646688838512,0.0456053,37647.0,37646.0,0.8575]
[1646688839511,0.0456053,37647.0,37646.0,0.9075]
[1646688839717,0.0456053,37647.0,37646.0,0.93428]
[1646688840513,0.0456053,37647.0,37646.0,0.12548]
[1646688840915,0.0456053,37647.0,37646.0,0.0987]
[1646688841319,0.0456053,37647.0,37646.0,0.0487]
[1646688841514,0.0456053,37647.0,37646.0,0.16554415]
[1646688843067,0.0456053,37647.0,37646.0,0.16554259]
[1646688844270,0.0456053,37647.0,37644.0,0.00226709]
[1646688844271,0.61695222,37647.0,37644.0,0.00226709]
[1646688844473,0.76695222,37647.0,37644.0,0.00226709]
[1646688844670,0.46695222,37647.0,37644.0,0.00226709]
[1646688844869,0.23753233,37646.0,37644.0,0.00226709]
[1646688845272,0.40994979,37646.0,37644.0,0.00226709]
[1646688845469,0.23753233,37646.0,37639.0,0.003]
[1646688846119,0.31695222,37647.0,37639.0,0.003]
[1646688846523,0.0456053,37647.0,37641.0,0.066432]
[1646688846723,0.0456053,37647.0,37642.0,0.83225]
[1646688847622,0.0456053,37647.0,37646.0,0.34694727]
[1646688847820,0.0456053,37647.0,37646.0,0.42471727]
[1646688848024,0.0456053,37647.0,37646.0,0.144185]
[1646688848423,0.0456053,37647.0,37646.0,0.07777]
[1646688848822,0.0456053,37647.0,37639.0,0.132856]
[1646688849122,0.23519795,37645.0,37640.0,0.21647934]
[1646688849319,0.0456053,37647.0,37640.0,0.21647934]
[1646688849600,0.0456053,37647.0,37641.0,0.066432]
[1646688849898,0.0456053,37647.0,37641.0,0.923932]
[1646688850299,0.0456053,37647.0,37646.0,0.24752615]
[1646688850499,0.0456053,37647.0,37646.0,0.31394615]
[1646688850698,0.0456053,37647.0,37646.0,0.06642]
[1646688850903,0.0456053,37647.0,37645.0,0.132839]
[1646688851097,0.0456053,37647.0,37641.0,0.00122002]
[1646688851500,0.0456053,37647.0,37646.0,0.26]
[1646688852298,0.27812644,37647.0,37646.0,0.26]
[1646688852899,0.0456053,37647.0,37646.0,0.26]
[1646688855921,0.0456053,37647.0,37646.0,0.2623934]
[1646688856123,0.2456053,37647.0,37646.0,0.2623934]
[1646688858980,0.23370908,37645.0,37642.0,0.74111027]
[1646688859775,0.24612003,37643.0,37642.0,0.74111027]
[1646688859976,0.23370908,37645.0,37642.0,0.74111027]
[1646688860379,0.23370908,37645.0,37643.0,0.3]
[1646688860579,0.23370908,37645.0,37644.0,0.8575]
[1646688860817,0.23370908,37645.0,37644.0,0.0487]
[1646688862017,0.23370908,37645.0,37644.0,0.06067326]
[1646688862217,0.23370908,37645.0,37644.0,0.3]
[1646688862417,0.23370908,37645.0,37642.0,0.83981027]
[1646688862619,0.23370908,37645.0,37642.0,0.88981027]
[1646688862818,0.23370908,37645.0,37642.0,0.78981027]
[1646688863018,0.23370908,37645.0,37643.0,1.06525049]
[1646688863219,0.23370908,37645.0,37644.0,0.8575]
[1646688864224,0.23370908,37645.0,37644.0,1.22536]
[1646688865165,0.23531806,37645.0,37644.0,1.22712338]
[1646688865366,0.23531806,37645.0,37644.0,1.36712338]
[1646688866968,0.23531806,37645.0,37644.0,1.42512107]
[1646688867570,0.23531806,37645.0,37644.0,0.67832338]
[1646688867771,0.23531806,37645.0,37644.0,0.61046338]
[1646688867969,0.23531806,37645.0,37644.0,0.31046338]
[1646688868171,0.23531806,37645.0,37642.0,0.79726738]
[1646688868816,0.23531806,37645.0,37643.0,1.1088]
[1646688869019,0.23531806,37645.0,37644.0,1.1088]
[1646688869222,0.23531806,37645.0,37644.0,0.8575]
[1646688869415,0.23531806,37645.0,37644.0,1.1575]
[1646688869616,0.23531806,37645.0,37644.0,1.27434415]
[1646688870017,0.23370908,37645.0,37644.0,1.47354938]
[1646688870216,0.23370908,37645.0,37644.0,1.87275538]
[1646688870417,0.23370908,37645.0,37644.0,1.87451876]
[1646688870617,0.2456053,37647.0,37646.0,0.8088]
[1646688870819,0.0001237,37650.0,37647.0,1.6]
[1646688871024,0.44533321,37657.0,37654.0,0.8088]
[1646688871225,0.08664618,37657.0,37656.0,0.8588]
[1646688871417,0.08664618,37657.0,37656.0,0.98]
[1646688871617,0.04884618,37657.0,37656.0,1.16815292]
[1646688871819,0.04884618,37657.0,37656.0,0.35935292]
[1646688872369,0.04884618,37657.0,37656.0,0.1212]
[1646688872567,0.04884618,37657.0,37656.0,0.0487]
[1646688872965,0.26394185,37657.0,37656.0,0.0487]
[1646688873367,0.37790768,37657.0,37656.0,0.0487]
[1646688873670,0.59300335,37657.0,37656.0,0.0487]
[1646688873868,0.59300335,37657.0,37654.0,0.05]
[1646688873869,0.59300335,37657.0,37654.0,0.116412]
[1646688874867,0.26394185,37657.0,37654.0,0.182824]
[1646688875367,0.264089,37657.0,37654.0,0.132824]
[1646688875815,0.04899333,37657.0,37654.0,0.132824]
[1646688876215,0.04899333,37657.0,37654.0,0.19922857]
[1646688876413,0.04884618,37657.0,37655.0,0.5640222]
[1646688876614,0.04884618,37657.0,37656.0,0.50015281]
[1646688876816,0.04899333,37657.0,37656.0,1.30895281]
[1646688877015,0.04899333,37657.0,37656.0,0.50015281]
[1646688877418,0.41,37659.0,37656.0,0.54885281]
[1646688877615,0.41,37659.0,37657.0,1.799143]
[1646688877814,0.41,37659.0,37658.0,0.9075]
[1646688878315,0.0005885,37664.0,37663.0,0.25420019]
[1646688878619,0.0005885,37664.0,37663.0,0.165081]
[1646688878813,0.21509567,37668.0,37663.0,1.0064303]
[1646688879014,0.21509567,37668.0,37663.0,0.1976303]
[1646688879015,0.21009567,37668.0,37663.0,0.1976303]
[1646688879212,0.21009567,37668.0,37666.0,0.20754973]
[1646688879415,0.37618255,37675.0,37666.0,0.1327553]
[1646688879416,0.26870182,37671.0,37666.0,0.1327553]
[1646688879675,0.015,37676.0,37666.0,0.1327553]
[1646688879676,0.26870182,37672.0,37666.0,0.1327553]
[1646688879870,0.26870182,37672.0,37667.0,0.066378]
[1646688880067,0.55357898,37674.0,37667.0,0.066378]
[1646688880068,0.26870182,37674.0,37667.0,0.066378]
[1646688880269,0.26863522,37674.0,37667.0,0.066378]
[1646688880477,0.01556338,37676.0,37669.0,1.49672394]
[1646688880670,0.01556338,37676.0,37674.0,0.17298638]
[1646688880873,0.01556338,37676.0,37671.0,0.331819]
[1646688880874,0.07412247,37672.0,37671.0,0.331819]
[1646688881068,0.07412247,37672.0,37671.0,0.380519]
[1646688881267,0.07412247,37672.0,37671.0,0.375519]
[1646688881868,0.07412247,37672.0,37671.0,0.54677745]
[1646688881869,0.06912247,37672.0,37671.0,0.54677745]
[1646688882067,0.06912247,37672.0,37671.0,0.375519]
[1646688882272,0.06912247,37672.0,37671.0,0.0487]
[1646688882667,0.39023322,37672.0,37671.0,0.0487]
[1646688883337,0.54023322,37672.0,37665.0,0.132778]
[1646688883539,0.06526367,37666.0,37665.0,0.495]
[1646688884336,0.15,37670.0,37665.0,0.495]
[1646688884535,0.26171848,37666.0,37660.0,0.1328]
[1646688885137,0.3,37671.0,37663.0,0.066401]
[1646688885339,0.0729368,37671.0,37663.0,0.066401]
[1646688885741,0.42615403,37672.0,37663.0,0.06622944]
[1646688885742,0.27615403,37672.0,37663.0,0.06622944]
[1646688885940,0.27615403,37672.0,37671.0,0.00146388]
[1646688886143,0.27600666,37672.0,37671.0,0.00146388]
[1646688886343,0.27615403,37672.0,37671.0,0.00146388]
[1646688886541,0.06926984,37672.0,37671.0,0.00146388]